bitfinex-derivatives/quotes_BTCF0:USTF0_20241130
["timestamp","ask_amount","ask_price","bid_price","bid_amount"]
[1732981599114,0.051691,96685.0,96681.0,0.1244]
[1732981599426,0.051691,96685.0,96682.0,0.051692]
[1732981600225,0.051691,96685.0,96684.0,0.3608]
[1732981600415,0.3608,96699.0,96685.0,0.05169]
[1732981600416,0.051688,96690.0,96685.0,0.05169]
[1732981600827,0.051688,96690.0,96684.0,0.3608]
[1732981601025,0.051687,96692.0,96690.0,0.051688]
[1732981603527,0.052687,96692.0,96690.0,0.051688]
[1732981604124,0.001,96692.0,96690.0,0.051688]
[1732981604520,0.052687,96692.0,96690.0,0.051688]
[1732981604745,0.052687,96692.0,96691.0,0.1244]
[1732981605224,0.001,96692.0,96691.0,0.1244]
[1732981606216,0.051685,96696.0,96691.0,0.1244]
[1732981606523,0.001,96692.0,96691.0,0.1244]
[1732981607222,0.051685,96696.0,96695.0,0.051685]
[1732981607427,0.052685,96696.0,96695.0,0.051685]
[1732981607922,0.052685,96696.0,96695.0,0.114385]
[1732981608920,0.051685,96696.0,96695.0,0.114385]
[1732981609628,0.052685,96696.0,96695.0,0.114385]
[1732981612627,0.001,96696.0,96695.0,0.114385]
[1732981617231,0.001,96696.0,96695.0,0.147685]
[1732981619827,0.00155145,96705.0,96704.0,0.05168]
[1732981620034,0.00155145,96705.0,96704.0,0.53684]
[1732981623932,0.00155145,96705.0,96704.0,0.17604]
[1732981624133,0.00155145,96705.0,96704.0,0.53684]
[1732981625240,0.00155145,96705.0,96704.0,0.54921483]
[1732981657157,0.00155145,96705.0,96704.0,0.18841483]
[1732981657371,0.00155145,96705.0,96704.0,0.54921483]
[1732981658262,0.00155145,96705.0,96704.0,0.41248]
[1732981658458,0.00155145,96705.0,96704.0,0.12432]
[1732981658459,0.05323145,96705.0,96704.0,0.12432]
[1732981658656,0.051681,96703.0,96702.0,0.12432]
[1732981658860,0.051681,96703.0,96702.0,0.176001]
[1732981661958,0.051681,96703.0,96702.0,0.051681]
[1732981670483,0.051681,96703.0,96699.0,0.076041]
[1732981671581,0.051681,96703.0,96702.0,0.051681]
[1732981675284,0.00155145,96705.0,96704.0,0.05168]
[1732981685981,0.05323145,96705.0,96704.0,0.05168]
[1732981690091,0.05323145,96705.0,96704.0,0.176]
[1732981692589,0.00155145,96705.0,96704.0,0.176]
[1732981695196,0.3608,96719.0,96704.0,0.12432]
[1732981695391,0.3608,96719.0,96718.0,0.051673]
[1732981695995,0.083969,96726.0,96725.0,0.051669]
[1732981697087,0.051666,96732.0,96722.0,0.051671]
[1732981697293,0.051666,96732.0,96730.0,0.051666]
[1732981697492,0.15552111,96731.0,96730.0,0.051666]
[1732981698990,0.15552111,96731.0,96730.0,0.053666]
[1732981699697,0.06378716,96732.0,96730.0,0.053666]
[1732981699698,0.01212116,96732.0,96730.0,0.053666]
[1732981699992,0.051663,96737.0,96735.0,0.051664]
[1732981700395,0.20603403,96737.0,96735.0,0.051664]
[1732981700600,0.39465113,96739.0,96738.0,0.051662]
[1732981701696,0.051663,96737.0,96735.0,0.001]
[1732981702004,0.051663,96737.0,96735.0,0.051664]
[1732981704002,0.051663,96737.0,96735.0,0.052664]
[1732981704193,0.03385113,96739.0,96738.0,0.051662]
[1732981705397,0.03385113,96739.0,96738.0,0.052662]
[1732981705605,0.03385113,96739.0,96738.0,0.053662]
[1732981705900,0.0323,96739.0,96738.0,0.053662]
[1732981707295,0.01246068,96742.0,96738.0,0.002]
[1732981707502,0.412458,96746.0,96744.0,0.051659]
[1732981708204,0.051658,96746.0,96744.0,0.051659]
[1732981708502,0.0319,96757.0,96742.0,0.48508]
[1732981708801,0.3917,96758.0,96756.0,0.051653]
[1732981708802,0.412452,96758.0,96756.0,0.051653]
[1732981710893,0.412452,96758.0,96756.0,0.053653]
[1732981714609,0.3608,96758.0,96756.0,0.053653]
[1732981715108,0.051651,96760.0,96759.0,0.051651]
[1732981716303,0.0319,96765.0,96763.0,0.051649]
[1732981716500,0.083548,96765.0,96763.0,0.051649]
[1732981718006,0.083548,96765.0,96763.0,0.052649]
[1732981718211,0.083548,96765.0,96763.0,0.053649]
[1732981719607,0.051648,96765.0,96763.0,0.053649]
[1732981720510,0.051646,96769.0,96768.0,0.051646]
[1732981721201,0.3608,96771.0,96770.0,0.051645]
[1732981721408,0.083343,96775.0,96767.0,0.12424]
[1732981721409,0.0317,96775.0,96767.0,0.12424]
[1732981721603,0.0317,96775.0,96774.0,0.051643]
[1732981722506,0.051642,96777.0,96775.0,0.051642]
[1732981723810,0.051644,96772.0,96770.0,0.001]
[1732981724010,0.051644,96772.0,96770.0,0.052645]
[1732981724214,0.051644,96772.0,96770.0,0.051645]
[1732981725014,0.051644,96772.0,96770.0,0.052645]
[1732981725607,0.051644,96772.0,96770.0,0.053645]
[1732981731016,0.051644,96772.0,96770.0,0.002]
[1732981731219,0.051644,96772.0,96770.0,0.1262]
[1732981732825,0.051644,96772.0,96770.0,0.002]
[1732981733827,0.41479767,96780.0,96770.0,0.002]
[1732981734126,0.051645,96771.0,96770.0,0.05599767]
[1732981734516,0.051645,96771.0,96770.0,0.053645]
[1732981736314,0.051645,96771.0,96770.0,0.052645]
[1732981736519,0.051645,96771.0,96770.0,0.053645]
[1732981737134,0.051645,96771.0,96770.0,0.052645]
[1732981737332,0.051645,96771.0,96770.0,0.053645]
[1732981739325,0.051645,96771.0,96770.0,0.1262]
[1732981740623,0.051645,96771.0,96770.0,0.1252]
[1732981740823,0.051645,96771.0,96770.0,0.1262]
[1732981741522,0.051645,96771.0,96770.0,0.177845]
[1732981742229,0.051645,96771.0,96770.0,0.176845]
[1732981742432,0.051645,96771.0,96770.0,0.177845]
[1732981742824,0.051645,96771.0,96770.0,0.176845]
[1732981743023,0.051645,96771.0,96770.0,0.177845]
[1732981743830,0.051645,96771.0,96770.0,0.1262]
[1732981744632,0.051645,96771.0,96770.0,0.002]
[1732981749625,0.412442,96777.0,96770.0,0.002]
[1732981749831,0.051644,96775.0,96774.0,0.051643]
[1732981750427,0.051644,96775.0,96774.0,0.175803]
[1732981751030,0.3608,96777.0,96776.0,0.051642]
[1732981752031,0.051641,96778.0,96777.0,0.051641]
[1732981752233,0.051639,96782.0,96780.0,0.05164]
[1732981752842,0.39406552,96788.0,96776.0,0.002]
[1732981752843,0.051641,96778.0,96776.0,0.002]
[1732981753231,0.051641,96778.0,96777.0,0.001]
[1732981753430,0.051641,96778.0,96777.0,0.12516]
[1732981754536,0.03274551,96788.0,96777.0,0.12516]
[1732981754725,0.051638,96783.0,96782.0,0.051639]
[1732981754929,0.3608,96789.0,96777.0,0.12516]
[1732981755130,0.051636,96788.0,96780.0,0.05164]
[1732981755332,0.051636,96788.0,96779.0,0.10799534]
[1732981755333,0.3608,96789.0,96788.0,0.051636]
[1732981755527,0.3608,96789.0,96788.0,0.175796]
[1732981757137,0.3608,96789.0,96788.0,0.176796]
[1732981758551,0.3608,96789.0,96788.0,0.177796]
[1732981759137,0.3608,96789.0,96788.0,0.176796]
[1732981759531,0.3608,96789.0,96788.0,0.12516]
[1732981760241,0.051635,96790.0,96788.0,0.12516]
[1732981761143,0.051635,96790.0,96788.0,0.176795]
[1732981762944,0.01200741,96798.0,96788.0,0.176795]
[1732981763138,0.01200741,96798.0,96788.0,0.23079267]
[1732981763336,0.51531768,96800.0,96788.0,0.23079267]
[1732981763337,0.05163,96799.0,96788.0,0.23079267]
[1732981763538,0.51531768,96800.0,96788.0,0.23079267]
[1732981763539,0.051635,96789.0,96788.0,0.23079267]
[1732981763839,0.051635,96789.0,96788.0,0.176795]
[1732981765136,0.051635,96789.0,96788.0,0.175795]
[1732981765337,0.051635,96789.0,96788.0,0.177795]
[1732981765538,0.051635,96789.0,96788.0,0.177755]
[1732981765741,0.051635,96789.0,96788.0,0.176755]
[1732981765935,0.051635,96789.0,96788.0,0.177755]
[1732981766149,0.051635,96789.0,96788.0,0.176755]
[1732981768651,0.051635,96789.0,96788.0,0.052635]
[1732981768847,0.051635,96789.0,96788.0,0.176755]
[1732981769045,0.01234372,96799.0,96794.0,0.051631]
[1732981769046,0.051632,96795.0,96794.0,0.051631]
[1732981770349,0.051632,96795.0,96794.0,0.052631]
[1732981770954,0.051632,96795.0,96794.0,0.05404033]
[1732981771152,0.46136001,96800.0,96794.0,0.00240933]
[1732981771350,0.4608,96800.0,96799.0,0.05163]
[1732981771552,0.4608,96800.0,96799.0,0.17575]
[1732981771854,0.1,96800.0,96799.0,0.17575]
[1732981772058,0.1,96800.0,96799.0,0.17715933]
[1732981772559,0.1,96800.0,96799.0,0.17815933]
[1732981774367,0.1,96800.0,96799.0,0.17915933]
[1732981780469,0.151629,96800.0,96799.0,0.17915933]
[1732981780769,0.151629,96800.0,96799.0,0.12752933]
[1732981782371,0.151629,96800.0,96799.0,0.00340933]
[1732981782564,0.151629,96800.0,96799.0,0.12752933]
[1732981787572,0.151629,96800.0,96799.0,0.00340933]
[1732981787773,0.151629,96800.0,96799.0,0.12752933]
[1732981790087,0.151629,96800.0,96799.0,0.17915933]
[1732981793181,0.151629,96800.0,96799.0,0.00340933]
[1732981793386,0.151629,96800.0,96799.0,0.12748933]
[1732981796786,0.151629,96800.0,96799.0,0.17911933]
[1732981796982,0.151629,96800.0,96799.0,0.12748933]
[1732981803982,0.151629,96800.0,96799.0,0.00340933]
[1732981804183,0.151629,96800.0,96799.0,0.12748933]
[1732981804585,0.151629,96800.0,96799.0,0.00340933]
[1732981804786,0.151629,96800.0,96799.0,0.12748933]
[1732981805885,0.151629,96800.0,96799.0,0.00340933]
[1732981806089,0.151629,96800.0,96799.0,0.12748933]
[1732981809895,0.151629,96800.0,96799.0,0.00340933]
[1732981810387,0.37023836,96800.0,96799.0,3.3e-07]
[1732981810691,0.215229,96800.0,96799.0,3.3e-07]
[1732981816796,0.67010602,96800.0,96799.0,3.3e-07]
[1732981818492,0.77341233,96800.0,96799.0,3.3e-07]
[1732981818700,0.89753233,96800.0,96799.0,3.3e-07]
[1732981823496,1.00647677,96800.0,96799.0,3.3e-07]
[1732981823897,0.051647,96766.0,96765.0,0.0617]
[1732981824097,0.051647,96766.0,96765.0,0.18578]
[1732981824494,0.051647,96766.0,96765.0,0.15418]
[1732981825997,0.056647,96766.0,96765.0,0.15418]
[1732981826590,0.061647,96766.0,96765.0,0.15518]
[1732981827400,0.065647,96766.0,96765.0,0.15518]
[1732981827792,0.065647,96766.0,96765.0,0.0311]
[1732981827999,0.065647,96766.0,96765.0,0.15522]
[1732981848710,0.065647,96766.0,96765.0,0.12512]
[1732981852211,0.065647,96766.0,96765.0,0.001]
[1732981852512,0.065647,96766.0,96743.0,0.03217715]
[1732981852513,0.051659,96744.0,96743.0,0.03217715]
[1732981852712,0.051659,96744.0,96743.0,0.15629715]
[1732981854921,0.053659,96744.0,96743.0,0.15629715]
[1732981855517,0.053659,96744.0,96743.0,0.15665715]
[1732981856618,0.053659,96744.0,96743.0,0.12455715]
[1732981858218,0.053659,96744.0,96743.0,0.12459715]
[1732981860029,0.058659,96744.0,96743.0,0.12459715]
[1732981860616,0.056659,96744.0,96743.0,0.12459715]
[1732981860925,0.058659,96744.0,96743.0,0.12459715]
[1732981862029,0.007,96744.0,96743.0,0.17625715]
[1732981862420,0.058659,96744.0,96743.0,0.12459715]
[1732981865723,0.058659,96744.0,96743.0,7.715e-05]
[1732981865921,0.058659,96744.0,96743.0,0.12459715]
[1732981869028,0.058659,96744.0,96743.0,7.715e-05]
[1732981870430,0.056659,96744.0,96743.0,7.715e-05]
[1732981870626,0.059659,96744.0,96743.0,7.715e-05]
[1732981871726,0.060659,96744.0,96743.0,0.00107715]
[1732981873036,0.009,96744.0,96743.0,0.00107715]
[1732981873232,0.060659,96744.0,96743.0,0.00107715]
[1732981876334,0.009,96744.0,96743.0,0.00107715]
[1732981880640,0.009,96744.0,96743.0,0.01342378]
[1732981880940,0.009,96744.0,96743.0,0.00107715]
[1732981884145,0.009,96744.0,96743.0,0.12519715]
[1732981884832,0.009,96744.0,96743.0,0.13716648]
[1732981885145,0.009,96744.0,96743.0,0.01304648]
[1732981885438,0.009,96744.0,96743.0,0.12519715]
[1732981891648,0.060659,96744.0,96743.0,0.12519715]
[1732981892847,0.060659,96744.0,96743.0,0.00107715]
[1732981893055,0.421459,96744.0,96743.0,0.00107715]
[1732981894848,0.424459,96744.0,96743.0,0.00107715]
[1732981895647,0.4308104,96744.0,96743.0,0.00107715]
[1732981895844,0.4398104,96744.0,96743.0,0.00107715]
[1732981907155,0.427459,96744.0,96743.0,0.12523715]
[1732981907360,0.066659,96744.0,96743.0,0.12523715]
[1732981932669,0.066659,96744.0,96743.0,0.00107715]
[1732981940176,0.015,96744.0,96743.0,0.00107715]
[1732981947778,0.015,96744.0,96743.0,0.12519715]
[1732981951489,0.066659,96744.0,96743.0,0.12519715]
[1732981957983,0.015,96744.0,96743.0,0.17685715]
[1732981959585,0.066659,96744.0,96743.0,0.17685715]
[1732981959793,0.3608,96773.0,96743.0,0.12519715]
[1732981959991,0.051654,96754.0,96752.0,0.05399767]
[1732981960296,0.051654,96754.0,96753.0,0.22032]
[1732981962489,0.060654,96754.0,96753.0,0.22132]
[1732981962892,0.064654,96754.0,96753.0,0.22132]
[1732981965283,0.064654,96754.0,96753.0,0.15842]
[1732981965883,0.064654,96754.0,96753.0,0.12512]
[1732981966088,0.064654,96754.0,96753.0,0.001]
[1732981966299,0.425454,96754.0,96753.0,0.12512]
[1732981975212,0.425454,96754.0,96753.0,0.001]
[1732981975602,0.52059171,96754.0,96753.0,0.001]
[1732981975805,0.425454,96754.0,96753.0,0.001]
[1732981979002,0.52059518,96754.0,96753.0,0.001]
[1732981980216,0.52059541,96754.0,96753.0,0.001]
[1732981985617,0.425454,96754.0,96753.0,0.001]
[1732981993822,0.5205889,96754.0,96753.0,0.001]
[1732981995416,0.425454,96754.0,96753.0,0.001]
[1732981995621,0.52059033,96754.0,96753.0,0.001]
[1732981996122,0.425454,96754.0,96753.0,0.001]
[1732981996320,0.52059171,96754.0,96753.0,0.001]
[1732981996627,0.52059229,96754.0,96753.0,0.001]
[1732982001822,0.425454,96754.0,96753.0,0.001]
[1732982002720,0.456354,96754.0,96753.0,0.001]
[1732982005520,0.456354,96754.0,96731.0,0.0936]
[1732982005521,0.051665,96732.0,96731.0,0.0936]
[1732982005721,0.412465,96732.0,96731.0,0.18522]
[1732982006622,0.41253919,96732.0,96731.0,0.18522]
[1732982006825,0.41253919,96732.0,96731.0,0.0611]
[1732982007824,0.41653919,96732.0,96731.0,0.0611]
[1732982008438,0.41753919,96732.0,96731.0,0.0611]
[1732982009731,0.41753919,96732.0,96731.0,0.0302]
[1732982009926,0.051667,96730.0,96729.0,0.12412]
[1732982010134,0.051668,96727.0,96726.0,7.824e-05]
[1732982011430,0.052668,96727.0,96726.0,7.824e-05]
[1732982012026,0.053668,96727.0,96726.0,7.824e-05]
[1732982013032,0.414468,96727.0,96726.0,7.824e-05]
[1732982017047,0.426468,96727.0,96726.0,7.824e-05]
[1732982029450,0.014,96727.0,96726.0,0.12419824]
[1732982047248,0.009,96727.0,96726.0,0.12419824]
[1732982047447,0.014,96727.0,96726.0,0.12419824]
[1732982048151,0.013,96727.0,96726.0,0.12419824]
[1732982051561,0.013,96727.0,96726.0,7.824e-05]
[1732982051751,0.013,96727.0,96726.0,0.12419824]
[1732982052551,0.064668,96727.0,96726.0,0.12419824]
[1732982062454,0.013,96727.0,96726.0,0.12419824]
[1732982073975,0.013,96727.0,96726.0,0.48499824]
[1732982074880,0.013,96727.0,96726.0,0.53666724]
[1732982080587,0.013,96727.0,96726.0,0.17586724]
[1732982084288,0.013,96727.0,96726.0,0.17582724]
[1732982100608,0.004,96727.0,96726.0,0.17582724]
[1732982100809,0.012,96727.0,96726.0,0.17582724]
[1732982101008,0.011,96727.0,96726.0,0.17582724]
[1732982108607,0.051655,96752.0,96746.0,0.051658]
[1732982108813,0.051656,96750.0,96746.0,0.536538]
[1732982109717,0.051656,96750.0,96748.0,0.051657]
[1732982111113,0.060656,96750.0,96748.0,0.051657]
[1732982111314,0.009,96750.0,96748.0,0.051657]
[1732982112720,0.013,96750.0,96748.0,0.051657]
[1732982116931,0.013,96750.0,96748.0,0.06371094]
[1732982117223,0.013,96750.0,96748.0,0.01205394]
[1732982117632,0.013,96750.0,96747.0,0.3608]
[1732982119023,0.014,96750.0,96747.0,0.3608]
[1732982119330,0.014,96750.0,96747.0,0.3618]
[1732982120929,0.014,96750.0,96747.0,0.37392131]
[1732982121729,0.065656,96750.0,96747.0,0.37392131]
[1732982122321,0.065656,96750.0,96748.0,0.12404]
[1732982123329,0.060656,96750.0,96748.0,0.12404]
[1732982123528,0.066656,96750.0,96748.0,0.12504]
[1732982123730,0.057656,96750.0,96748.0,0.12504]
[1732982123925,0.066656,96750.0,96748.0,0.12604]
[1732982128337,0.066656,96750.0,96749.0,0.124]
[1732982128933,0.066656,96750.0,96748.0,0.002]
[1732982129237,0.066656,96750.0,96749.0,0.124]
[1732982129428,0.066656,96750.0,96749.0,0.125]
[1732982129831,0.060656,96750.0,96749.0,0.125]
[1732982130035,0.066656,96750.0,96749.0,0.125]
[1732982131736,0.066656,96750.0,96749.0,0.126]
[1732982132937,0.066656,96750.0,96749.0,0.002]
[1732982136539,0.07876906,96750.0,96749.0,0.002]
[1732982138544,0.43956906,96750.0,96749.0,0.002]
[1732982158246,0.015,96750.0,96749.0,0.002]
[1732982165858,0.066656,96750.0,96749.0,0.002]
[1732982170053,0.066656,96750.0,96749.0,0.126]
[1732982174357,0.066656,96750.0,96749.0,0.002]
[1732982174560,0.066656,96750.0,96749.0,0.126]
[1732982191673,0.065656,96750.0,96749.0,0.125]
[1732982216903,0.056656,96750.0,96749.0,0.124]
[1732982217198,0.065656,96750.0,96749.0,0.125]
[1732982217588,0.056656,96750.0,96749.0,0.124]
[1732982217785,0.060656,96750.0,96749.0,0.125]
[1732982217985,0.065656,96750.0,96749.0,0.125]
[1732982218593,0.060656,96750.0,96749.0,0.125]
[1732982218794,0.065656,96750.0,96749.0,0.125]
[1732982234715,0.065656,96750.0,96749.0,0.001]
[1732982316168,0.065656,96750.0,96720.0,0.23980024]
[1732982316169,0.051668,96727.0,96720.0,0.23980024]
[1732982316370,0.051668,96727.0,96726.0,0.12387824]
[1732982317472,0.051668,96727.0,96726.0,7.824e-05]
[1732982317675,0.051668,96727.0,96726.0,0.12387824]
[1732982318581,0.053668,96727.0,96726.0,0.12387824]
[1732982321881,0.414468,96727.0,96726.0,0.12387824]
[1732982324977,0.414468,96727.0,96726.0,0.12391824]
[1732982325774,0.3608,96739.0,96726.0,0.12391824]
[1732982325980,0.3608,96739.0,96733.0,0.051665]
[1732982326281,0.051663,96738.0,96734.0,0.15594]
[1732982326583,0.3608,96739.0,96734.0,0.15594]
[1732982326880,0.051663,96736.0,96734.0,0.15594]
[1732982328072,0.057663,96736.0,96734.0,0.15694]
[1732982329284,0.059663,96736.0,96734.0,0.15694]
[1732982330975,0.059663,96736.0,96734.0,0.16932568]
[1732982334580,0.057663,96736.0,96734.0,0.16932568]
[1732982334779,0.059663,96736.0,96734.0,0.22098968]
[1732982335176,0.053663,96736.0,96734.0,0.21998968]
[1732982335374,0.053663,96736.0,96734.0,0.22098968]
[1732982335375,0.059663,96736.0,96734.0,0.22098968]
[1732982339286,0.059663,96736.0,96734.0,0.16932568]
[1732982340890,0.008,96736.0,96734.0,0.16932568]
[1732982342790,0.008,96736.0,96734.0,0.01338568]
[1732982342987,0.008,96736.0,96735.0,0.1238]
[1732982344494,0.002,96736.0,96735.0,0.1238]
[1732982351998,0.002,96736.0,96735.0,0.4846]
[1732982354601,0.002,96736.0,96735.0,0.536264]
[1732982363407,0.002,96736.0,96735.0,0.412464]
[1732982363610,0.002,96736.0,96735.0,0.536264]
[1732982364803,0.002,96736.0,96735.0,0.175464]
[1732982365004,0.002,96736.0,96735.0,0.536264]
[1732982368804,0.002,96736.0,96735.0,0.48456]
[1732982369001,0.002,96736.0,96734.0,0.01238568]
[1732982369002,0.002,96736.0,96730.0,0.18580257]
[1732982369202,0.0945,96735.0,96731.0,0.12376]
[1732982369909,0.0945,96735.0,96732.0,0.12376]
[1732982370414,0.0965,96735.0,96732.0,0.12376]
[1732982371114,0.0945,96735.0,96732.0,0.12376]
[1732982371315,0.0965,96735.0,96732.0,0.12376]
[1732982372313,0.1015,96735.0,96732.0,0.12376]
[1732982375005,0.1015,96735.0,96729.0,0.43492]
[1732982375213,0.1015,96735.0,96730.0,0.12376]
[1732982376003,0.3608,96733.0,96731.0,0.12376]
[1732982376310,0.3608,96733.0,96727.0,0.12376]
[1732982377412,0.3618,96733.0,96727.0,0.12376]
[1732982377608,0.3658,96733.0,96727.0,0.12376]
[1732982378311,0.3658,96733.0,96726.0,7.824e-05]
[1732982378906,0.3618,96733.0,96726.0,7.824e-05]
[1732982379108,0.3658,96733.0,96726.0,7.824e-05]
[1732982380310,0.3668,96733.0,96726.0,7.824e-05]
[1732982380515,0.3608,96727.0,96726.0,7.824e-05]
[1732982382008,0.3628,96727.0,96726.0,7.824e-05]
[1732982384019,0.37501297,96727.0,96726.0,7.824e-05]
[1732982391521,0.37801297,96727.0,96726.0,7.824e-05]
[1732982391722,0.38201297,96727.0,96726.0,7.824e-05]
[1732982402725,0.3698,96727.0,96726.0,7.824e-05]
[1732982405938,0.52389384,96727.0,96726.0,7.824e-05]
[1732982406143,0.051673,96719.0,96709.0,0.12372]
[1732982406342,0.3608,96710.0,96709.0,0.12372]
[1732982407035,0.3608813,96710.0,96709.0,0.12372]
[1732982407447,0.3608813,96710.0,96706.0,0.10768415]
[1732982407837,0.4125593,96710.0,96706.0,0.01218415]
[1732982408143,0.3608813,96710.0,96700.0,0.309594]
[1732982408341,0.3608,96701.0,96700.0,0.185874]
[1732982409239,0.3608,96701.0,96700.0,0.19798706]
[1732982410747,0.3608,96701.0,96700.0,0.19898706]
[1732982412441,0.3608,96701.0,96700.0,0.01322069]
[1732982413045,0.36014,96701.0,96700.0,0.01322069]
[1732982413250,0.36140131,96710.0,96700.0,0.01322069]
[1732982413545,0.3608813,96710.0,96702.0,0.18576637]
[1732982413748,0.3608813,96710.0,96700.0,0.3068289]
[1732982414348,0.3608813,96710.0,96704.0,0.18576637]
[1732982414645,0.3628813,96710.0,96702.0,0.18576637]
[1732982414847,0.3678813,96710.0,96703.0,0.18576637]
[1732982415351,0.3678813,96710.0,96704.0,0.03785]
[1732982416550,0.3678813,96710.0,96705.0,0.015]
[1732982417049,0.3678813,96710.0,96706.0,0.00827]
[1732982419045,0.3658813,96710.0,96706.0,0.00827]
[1732982419355,0.051679,96708.0,96706.0,0.00827]
[1732982419857,0.051679,96708.0,96695.0,0.000416]
[1732982419858,0.01,96701.0,96700.0,0.12376]
[1732982420046,0.89373377,96701.0,96698.0,0.02938474]
[1732982420246,0.89373377,96701.0,96697.0,0.12376]
[1732982420247,0.33690604,96700.0,96697.0,0.12376]
[1732982421452,0.33690604,96700.0,96698.0,0.00827]
[1732982421749,0.33690604,96700.0,96698.0,0.01654]
[1732982422350,0.33690604,96700.0,96698.0,0.05097]
[1732982423252,0.76166001,96701.0,96698.0,0.09762]
[1732982423453,0.32910918,96700.0,96698.0,0.09762]
[1732982423653,0.32910918,96699.0,96698.0,0.09762]
[1732982424047,0.27883067,96699.0,96698.0,0.09762]
[1732982424250,0.32910882,96700.0,96698.0,0.09762]
[1732982424560,0.76166001,96701.0,96698.0,0.09762]
[1732982424561,0.32910882,96699.0,96698.0,0.09762]
[1732982424854,0.32910882,96700.0,96698.0,0.09762]
[1732982425356,0.3903,96699.0,96698.0,0.09762]
[1732982425557,0.71940882,96699.0,96698.0,0.09762]
[1732982426355,0.71940882,96699.0,96698.0,0.09862]
[1732982427353,0.56960389,96699.0,96698.0,0.09862]
[1732982430152,0.56960389,96699.0,96698.0,0.22238]
[1732982432560,0.71864577,96699.0,96698.0,0.22238]
[1732982436366,0.78660577,96699.0,96698.0,0.22238]
[1732982436565,0.56960389,96699.0,96698.0,0.22238]
[1732982436768,0.78660757,96699.0,96698.0,0.22238]
[1732982436966,0.78660673,96699.0,96698.0,0.22238]
[1732982437267,0.71537684,96699.0,96698.0,0.22238]
[1732982438655,0.56960389,96699.0,96698.0,0.22238]
[1732982439082,0.56960389,96699.0,96698.0,0.22798]
[1732982442364,0.3903,96699.0,96698.0,0.22798]
[1732982442575,0.55856025,96699.0,96698.0,0.22798]
[1732982443067,0.69554624,96699.0,96698.0,0.22798]
[1732982443467,1.41619038,96699.0,96698.0,0.22798]
[1732982444270,1.41619038,96699.0,96698.0,0.10422]
[1732982445174,1.27971905,96699.0,96698.0,0.10422]
[1732982445375,1.49683718,96699.0,96698.0,0.10422]
[1732982445574,1.27971905,96699.0,96698.0,0.10422]
[1732982445880,1.49683733,96699.0,96698.0,0.10422]
[1732982448471,1.27215115,96699.0,96698.0,0.10422]
[1732982450174,1.22883036,96699.0,96698.0,0.10422]
[1732982453477,1.22627245,96699.0,96698.0,0.10422]
[1732982457868,1.22668845,96699.0,96698.0,0.10422]
[1732982458381,1.22713877,96699.0,96698.0,0.10422]
[1732982458979,1.44425705,96699.0,96698.0,0.10422]
[1732982459378,1.56941002,96699.0,96698.0,0.10422]
[1732982459583,1.22713877,96699.0,96698.0,0.10422]
[1732982460279,1.35215208,96699.0,96698.0,0.10422]
[1732982460879,1.35215208,96699.0,96698.0,0.155904]
[1732982464690,1.22713877,96699.0,96698.0,0.155904]
[1732982464985,1.44429931,96699.0,96698.0,0.155904]
[1732982468181,1.34421041,96699.0,96698.0,0.155904]
[1732982468795,1.34421041,96699.0,96694.0,7.492e-05]
[1732982468974,0.24763876,96697.0,96694.0,7.492e-05]
[1732982469177,0.24763876,96695.0,96694.0,0.05176092]
[1732982469378,0.2752152,96695.0,96694.0,0.05176092]
[1732982471280,0.2752152,96695.0,96694.0,0.03029269]
[1732982471281,0.3989352,96695.0,96694.0,0.03029269]
[1732982471476,0.3989352,96695.0,96694.0,0.04384794]
[1732982471477,0.64680204,96695.0,96694.0,0.04384794]
[1732982471674,0.3989352,96695.0,96694.0,0.01355525]
[1732982471885,0.3989352,96695.0,96693.0,0.01654]
[1732982471886,0.29106789,96695.0,96693.0,0.01654]
[1732982472094,0.40795885,96694.0,96693.0,0.068226]
[1732982472278,0.2752152,96694.0,96693.0,0.068226]
[1732982472482,0.2756312,96694.0,96693.0,0.068226]
[1732982472880,0.24813949,96694.0,96693.0,0.068226]
[1732982473084,0.24813949,96694.0,96693.0,0.070226]
[1732982473085,0.2756312,96694.0,96693.0,0.070226]
[1732982473487,0.62261041,96694.0,96693.0,0.070226]
[1732982475984,0.61416898,96694.0,96693.0,0.0825807]
[1732982476393,0.56388167,96694.0,96693.0,0.0825807]
[1732982476992,0.78786648,96694.0,96693.0,0.0825807]
[1732982477187,0.57129187,96694.0,96693.0,0.0825807]
[1732982477791,0.44757187,96694.0,96693.0,0.0825807]
[1732982479089,0.22039221,96694.0,96693.0,0.0825807]
[1732982479489,0.72220001,96699.0,96693.0,0.0825807]
[1732982479692,0.09328619,96698.0,96697.0,0.051684]
[1732982482601,0.18573335,96698.0,96697.0,0.051684]
[1732982482892,0.5701732,96699.0,96697.0,0.052684]
[1732982483192,0.299565,96699.0,96697.0,0.052684]
[1732982483395,0.54653519,96704.0,96697.0,0.052684]
[1732982483701,0.15478031,96701.0,96697.0,0.052684]
[1732982483997,0.08358231,96703.0,96702.0,0.051681]
[1732982484294,8.13e-05,96710.0,96709.0,0.051678]
[1732982485492,0.3903813,96710.0,96709.0,0.051678]
[1732982485992,0.3923813,96710.0,96709.0,0.051678]
[1732982487591,0.3973813,96710.0,96709.0,0.06414731]
[1732982489303,0.3973813,96710.0,96709.0,0.07241731]
[1732982490298,0.58299323,96710.0,96709.0,0.07241731]
[1732982490699,0.3973813,96710.0,96709.0,0.07241731]
[1732982491391,0.4042813,96710.0,96709.0,0.07241731]
[1732982492195,0.4042813,96710.0,96709.0,0.08068731]
[1732982492396,0.58989689,96710.0,96709.0,0.08068731]
[1732982493401,0.4042813,96710.0,96709.0,0.08068731]
[1732982494398,0.4042813,96710.0,96709.0,0.02900931]
[1732982494601,0.48853454,96710.0,96709.0,0.01654]
[1732982495302,0.58636701,96710.0,96709.0,0.01654]
[1732982495501,0.74200036,96710.0,96709.0,0.01654]